bitfinex-derivatives/quotes_ETHF0:USTF0_20250602
["timestamp","ask_amount","ask_price","bid_price","bid_amount"]
[1748824236308,0.00592359,2531.6,2531.5,2.16377]
[1748824236508,0.00592359,2531.6,2531.5,2.85577]
[1748824238109,2.05598,2532.1,2532.0,0.78951]
[1748824238304,0.78954,2531.9,2531.8,4.23]
[1748824238809,2.05603,2532.0,2531.9,0.78954]
[1748824239007,3.34478197,2532.0,2531.9,0.78954]
[1748824240012,2.55525197,2532.0,2531.9,0.78954]
[1748824241207,3.34476197,2532.0,2531.9,0.78954]
[1748824241809,3.34581462,2532.0,2531.9,0.78954]
[1748824242207,2.55630462,2532.0,2531.9,0.78954]
[1748824242408,0.78955,2531.9,2531.8,0.78957]
[1748824242609,1.2843,2531.9,2531.8,0.78957]
[1748824242809,2.57448723,2531.9,2531.8,0.78957]
[1748824244814,1.29018723,2531.9,2531.8,0.78957]
[1748824245212,3.21372359,2532.2,2532.1,0.78948]
[1748824245511,4.50487994,2532.2,2532.1,4.92448]
[1748824245713,4.50487994,2532.2,2532.1,45.72448]
[1748824245917,1.29698182,2532.2,2532.1,45.72448]
[1748824246217,1.29697979,2532.2,2532.1,45.72448]
[1748824246517,0.00592359,2532.2,2532.1,47.00808]
[1748824247515,3.2078,2532.9,2532.8,0.78926]
[1748824247715,4.49849686,2532.9,2532.8,0.78926]
[1748824248018,3.2078,2532.9,2532.8,0.78926]
[1748824248218,4.49868898,2532.9,2532.8,0.78926]
[1748824248514,3.2078,2532.9,2532.8,0.78926]
[1748824249514,3.2078,2532.9,2532.7,4.135]
[1748824249716,1.311,2532.8,2532.7,4.92429]
[1748824254614,2.10026,2532.8,2532.7,4.92429]
[1748824254815,1.311,2532.8,2532.7,4.92429]
[1748824257132,2.10026,2532.8,2532.7,4.135]
[1748824257332,0.78931,2532.7,2532.4,4.134]
[1748824257532,2.76211,2532.7,2532.6,0.78933]
[1748824258726,1.9728,2532.7,2532.6,0.78933]
[1748824260826,2.76209,2532.7,2532.6,0.78933]
[1748824261224,2.76209,2532.7,2532.3,3.2078]
[1748824261225,1.9728,2532.7,2532.3,3.2078]
[1748824261434,0.78939,2532.4,2532.3,7.3418]
[1748824262428,1.44039,2532.4,2532.3,7.3418]
[1748824262733,0.78947,2532.2,2531.9,4.134]
[1748824262933,0.6864,2532.1,2532.0,0.78951]
[1748824263234,1.978,2532.1,2532.0,0.78951]
[1748824263437,0.78951,2532.0,2531.9,4.134]
[1748824263636,2.08111,2532.0,2531.9,4.134]
[1748824263841,1.2916,2532.0,2531.9,4.92354]
[1748824266841,2.08111,2532.0,2531.9,4.92354]
[1748824268143,2.08111,2532.0,2531.9,4.134]
[1748824268348,2.08111,2532.0,2531.9,4.92354]
[1748824268646,2.57179423,2532.0,2531.9,4.92354]
[1748824269043,3.36130423,2532.0,2531.9,4.92354]
[1748824269754,2.57179423,2532.0,2531.9,4.92354]
[1748824270141,1.2916,2532.0,2531.9,4.92354]
[1748824270340,3.36125122,2532.0,2531.9,4.92354]
[1748824270543,2.57174122,2532.0,2531.9,4.92354]
[1748824270947,3.36125122,2532.0,2531.9,4.92354]
[1748824271247,1.2916,2532.0,2531.9,4.92354]
[1748824271438,3.36132846,2532.0,2531.9,4.92354]
[1748824271645,2.57181846,2532.0,2531.9,4.92354]
[1748824272140,2.08111,2532.0,2531.9,4.92354]
[1748824272451,2.57166033,2532.0,2531.9,4.92354]
[1748824272645,1.2916,2532.0,2531.9,4.92354]
[1748824273346,1.2916,2532.0,2531.7,0.00592359]
[1748824273347,0.78957,2531.8,2531.7,0.00592359]
[1748824273945,2.08197,2531.8,2531.7,0.00592359]
[1748824275050,5.28977,2531.8,2531.7,0.00592359]
[1748824275550,6.56946585,2531.8,2531.7,0.00592359]
[1748824275751,5.28977,2531.8,2531.7,0.00592359]
[1748824276154,23.78077,2531.8,2531.7,0.00592359]
[1748824276347,25.06029284,2531.8,2531.7,0.00592359]
[1748824277852,25.05951171,2531.8,2531.7,0.00592359]
[1748824278550,0.78989,2530.8,2530.5,3.2078]
[1748824278747,1.97428,2531.4,2530.6,4.89295]
[1748824278748,0.1975,2530.7,2530.6,4.89295]
[1748824279149,0.1975,2530.7,2530.6,47.00025]
[1748824284761,0.1975,2530.7,2530.6,6.20025]
[1748824285757,0.78998,2530.5,2530.4,0.00592359]
[1748824286160,6.27576423,2530.5,2529.7,4.104]
[1748824286356,3.2078,2529.9,2529.4,4.104]
[1748824286660,0.79023,2529.7,2529.5,0.79029]
[1748824286859,1.3185,2529.6,2529.5,41.59029]
[1748824287256,1.3185,2529.6,2529.5,0.79029]
[1748824287863,2.10876,2529.6,2529.5,0.79029]
[1748824288252,1.3185,2529.6,2529.3,3.99814]
[1748824288454,0.79029,2529.5,2529.3,3.99815]
[1748824288763,1.291,2529.4,2528.9,3.2078]
[1748824288958,1.29692359,2529.4,2528.9,3.2078]
[1748824289262,1.29692359,2529.4,2528.9,3.99827]
[1748824289463,0.79044,2529.1,2528.9,3.99828]
[1748824289759,0.00592359,2529.4,2529.3,0.79036]
[1748824290261,0.00592359,2529.4,2529.2,0.79037]
[1748824290456,0.79037,2529.3,2529.0,0.79045]
[1748824290664,1.9491,2529.2,2529.1,0.79041]
[1748824291259,1.9491,2529.2,2529.0,0.79043]
[1748824291665,1.9491,2529.2,2529.1,0.79042]
[1748824291962,1.9491,2529.2,2528.9,3.2078]
[1748824292164,2.73949,2529.2,2528.9,3.2078]
[1748824292364,0.7905,2528.9,2528.6,7.3128]
[1748824292660,18.502,2529.0,2528.9,0.79048]
[1748824292853,20.4341,2529.1,2529.0,0.79045]
[1748824293459,21.22452,2529.1,2529.0,0.79045]
[1748824293659,21.22452,2529.1,2528.9,0.79047]
[1748824293860,20.4341,2529.1,2528.6,7.3128]
[1748824294063,0.79053,2528.8,2528.6,3.99836]
[1748824294258,20.4341,2529.1,2528.6,0.79057]
[1748824294259,1.3118,2528.7,2528.6,0.79057]
[1748824294460,3.2078,2529.0,2528.4,1.9766]
[1748824294662,18.502,2528.9,2528.5,1.97652]
[1748824294864,19.8168,2529.0,2528.9,0.79048]
[1748824295065,1.3118,2529.0,2528.9,0.79048]
[1748824296068,0.6469,2529.2,2529.1,0.79042]
[1748824296270,1.9587,2529.2,2529.1,0.79042]
[1748824297462,3.2078,2529.3,2529.2,0.79039]
[1748824298163,0.00592359,2529.4,2529.3,0.79036]
[1748824298359,0.00592359,2529.4,2529.3,2.15996]
[1748824299060,0.00592359,2529.4,2529.3,0.79036]
[1748824299263,1.32482359,2529.4,2529.3,0.79036]
[1748824299459,2.11514359,2529.4,2529.2,0.79037]
[1748824299665,1.32482359,2529.4,2529.3,0.79036]
[1748824299864,0.00592359,2529.4,2529.3,0.79036]
[1748824302065,0.00592359,2529.4,2529.3,2.78306]
[1748824302266,3.59e-06,2529.4,2529.3,2.78306]
[1748824302571,3.59e-06,2529.4,2529.3,7.78306]
[1748824303071,3.59e-06,2529.4,2529.3,48.58306]
[1748824306666,2.0275,2530.6,2530.5,0.78998]
[1748824306867,0.1975,2530.7,2530.6,0.78995]
[1748824312170,0.00592359,2530.9,2530.6,3.2078]
[1748824312373,0.00592359,2530.9,2530.8,0.78989]
[1748824312573,0.00592359,2530.9,2530.8,4.89289]
[1748824312772,0.00592359,2530.9,2530.8,45.69289]
[1748824312981,1.3594,2531.3,2531.2,0.78976]
[1748824313276,0.6904,2531.7,2531.6,0.78964]
[1748824313580,3.32244885,2531.7,2531.6,0.78964]
[1748824314374,2.0498,2531.7,2531.6,0.78964]
[1748824315275,0.1974,2531.8,2531.6,0.78964]
[1748824315276,0.1974,2531.8,2531.7,0.78961]
[1748824315480,0.1974,2531.8,2531.7,3.99741]
[1748824316383,0.00592359,2531.9,2531.8,0.78957]
[1748824316589,3.2078,2532.8,2531.8,1.3047]
[1748824316785,1.3668,2532.6,2532.5,0.78936]
[1748824318876,6.3668,2532.6,2532.3,0.00592359]
[1748824319085,0.78939,2532.4,2532.3,0.00592359]
[1748824319283,2.15615,2532.6,2532.4,0.78938]
[1748824319480,1.3668,2532.6,2532.4,0.78938]
[1748824319686,2.15614,2532.6,2532.4,0.78938]
[1748824320380,2.15614,2532.6,2532.5,0.78936]
[1748824320381,1.3668,2532.6,2532.5,0.78936]
[1748824320785,1.3668,2532.6,2532.4,0.78938]
[1748824320986,0.78937,2532.5,2532.3,0.79531359]
[1748824321187,1.3052,2532.4,2532.3,0.79531359]
[1748824322081,4.51022359,2532.8,2532.7,0.78929]
[1748824322282,1.30242359,2532.8,2532.7,0.78929]
[1748824324188,9.51022359,2532.8,2532.6,0.78932]
[1748824324389,9.51022359,2532.8,2532.5,0.78934]
[1748824324390,1.3121,2532.7,2532.5,0.78934]
[1748824324591,0.78933,2532.6,2532.5,0.78934]
[1748824324780,2.10141,2532.7,2532.5,0.78934]
[1748824324981,2.10142,2532.7,2532.5,0.78934]
[1748824325186,1.3121,2532.7,2532.6,0.78933]
[1748824325386,1.3121,2532.7,2532.5,0.78933]
[1748824325387,0.78933,2532.6,2532.5,0.78933]
[1748824325993,2.1014,2532.7,2532.6,0.78933]
[1748824326693,1.3121,2532.7,2532.6,0.78933]
[1748824328085,6.3121,2532.7,2532.3,0.00592359]
[1748824328287,1.97369,2532.2,2531.6,3.2078]
[1748824328491,3.2078,2532.0,2531.6,3.99742]
[1748824328788,0.78961,2531.7,2531.6,3.2078]
[1748824328992,2.07226,2531.9,2531.6,3.2078]
[1748824329190,0.78957,2531.8,2531.6,3.99741]
[1748824329496,2.07231,2531.7,2531.6,3.2078]
[1748824329683,1.2827,2531.7,2531.6,3.99744]
[1748824331699,1.3644,2532.1,2532.0,0.78951]
[1748824331991,0.78951,2532.0,2531.6,4.5765]
[1748824332494,1.3644,2532.1,2531.9,0.78954]
[1748824332694,1.3644,2532.1,2532.0,0.78951]
[1748824332890,2.63716319,2532.1,2532.0,0.78951]
[1748824333194,2.6631,2532.1,2532.0,0.78951]
[1748824333694,1.9735,2532.1,2532.0,0.78951]
[1748824336390,3.2078,2532.4,2532.3,0.78942]
[1748824336591,1.27575104,2532.4,2532.3,0.78942]
[1748824337001,1.26777886,2532.6,2532.5,0.78936]
[1748824337295,2.61187886,2532.6,2532.5,0.78936]
[1748824337599,2.54358709,2532.6,2532.5,0.78936]
[1748824337898,0.78936,2532.5,2532.4,4.88737]
[1748824338088,1.3441,2532.5,2532.4,4.88737]
[1748824338495,2.62055863,2532.5,2532.4,4.88737]
[1748824341300,2.62261655,2532.5,2532.4,4.88737]
[1748824341794,1.27851655,2532.5,2532.4,4.88737]
[1748824341992,1.27851655,2532.5,2532.4,6.17157]
[1748824342797,1.26777886,2532.6,2532.5,0.78936]
[1748824343000,6.3027529,2533.2,2532.5,0.78936]
[1748824343001,2.32121467,2533.1,2532.5,1.2842]
[1748824343302,5.52901467,2533.2,2533.1,0.78917]
[1748824343505,7.10447293,2533.2,2533.1,0.78917]
[1748824343705,3.46206814,2533.2,2533.1,0.78917]
[1748824344003,0.6612,2533.3,2533.2,0.78914]
[1748824344004,3.01049919,2533.3,2533.2,0.78914]
[1748824344199,2.35522278,2533.4,2533.3,0.78911]
[1748824344403,2.60950986,2533.4,2533.3,0.78911]
[1748824344701,2.60950986,2533.4,2533.3,41.58911]
[1748824344905,0.26021067,2533.4,2533.3,45.68711]
[1748824345206,0.26022874,2533.4,2533.3,45.68711]
[1748824345404,0.00592359,2533.4,2533.3,45.68711]
[1748824345601,0.26022838,2533.4,2533.3,45.68711]
[1748824346205,0.26022868,2533.4,2533.3,45.68711]
[1748824346407,0.00592359,2533.4,2533.3,45.68711]
[1748824348409,1.25942359,2533.4,2533.3,45.68711]
[1748824351211,2.04850359,2533.4,2533.3,44.898]
[1748824351510,20.52650359,2533.4,2533.3,4.098]
[1748824351699,0.78917,2533.1,2533.0,4.097]
[1748824351904,0.7892,2533.0,2532.9,0.79512359]
[1748824352112,1.3705,2533.0,2532.9,0.79512359]
[1748824352608,0.78911,2533.3,2533.2,0.78914]
[1748824352905,18.48292359,2533.4,2533.3,0.78911]
[1748824353211,0.00592359,2533.4,2533.3,0.78911]
[1748824353901,1.37642359,2533.4,2533.3,0.78911]
[1748824354310,2.16550359,2533.4,2533.3,0.78911]
[1748824355114,5.84651992,2533.4,2533.1,4.097]
[1748824355312,0.78918,2533.1,2533.0,0.78918]
[1748824355513,4.58422359,2533.4,2532.9,4.10292359]
[1748824355713,1.3364,2533.2,2533.1,0.78917]
[1748824356013,2.59859041,2533.2,2533.1,0.78917]
[1748824356507,2.59859041,2533.2,2532.6,44.0078]
[1748824356508,1.97381,2532.0,2530.6,1.97488]
[1748824356712,3.2078,2530.7,2529.5,13.38735776]
[1748824356903,3.2078,2531.0,2530.4,3.2078]
[1748824357104,3.2078,2530.7,2530.3,0.79002]
[1748824357304,2.61723008,2530.6,2530.1,3.2078]
[1748824357516,1.26645367,2530.6,2530.4,3.2078]
[1748824357814,1.26645367,2530.6,2530.5,4.505]
[1748824358012,0.00592359,2530.6,2530.5,5.8205]
[1748824358809,0.00592359,2530.6,2530.5,2.10548]
[1748824359013,0.00592359,2530.6,2530.5,6.61048]
[1748824360215,0.00592359,2530.6,2530.5,5.8205]
[1748824361216,0.00592359,2530.6,2530.5,2.10548]
[1748824361515,0.00592359,2530.6,2530.5,6.61148]
[1748824362612,0.00592359,2530.6,2530.5,2.10548]
[1748824362811,0.00592359,2530.6,2530.5,11.61148]
[1748824363411,0.00592359,2530.6,2530.5,52.41148]
[1748824366415,1.3824,2531.2,2531.0,0.78982]
[1748824366719,1.3824,2531.2,2531.1,4.507]
[1748824366920,2.17218,2531.2,2531.1,4.507]
[1748824370525,1.3824,2531.2,2531.1,4.507]
[1748824370823,3.2078,2531.3,2531.2,0.78976]
[1748824371029,3.2078,2531.3,2531.2,2.14566]
[1748824374027,0.00592359,2531.4,2531.3,0.78973]
[1748824374225,0.00592359,2531.4,2531.3,2.09983]
[1748824374729,0.1974,2531.9,2531.8,0.78957]
[1748824374915,0.1974,2531.9,2531.8,5.29757]
[1748824375120,0.1974,2531.9,2531.8,8.50537]
[1748824376130,3.2078,2532.8,2531.8,12.7158]
[1748824376318,3.2078,2532.8,2532.2,3.2078]
[1748824376523,1.3041,2532.7,2532.6,0.78932]
[1748824376722,1.3041,2532.7,2532.6,46.09632]
[1748824383830,0.00592359,2532.9,2532.8,0.78926]
[1748824384031,3.2078,2533.7,2533.6,0.78901]
[1748824384332,3.2078,2533.7,2533.6,5.29501]
[1748824384727,0.636,2534.1,2534.0,0.78889]
[1748824384728,3.8438,2534.1,2534.0,0.78889]
[1748824384927,3.8438,2534.1,2534.0,5.29489]
[1748824385229,1.45021,2534.6,2534.4,0.78875]
[1748824385535,1.2928,2534.5,2534.4,0.78876]
[1748824385735,1.2928,2534.5,2534.4,5.29476]
[1748824386132,2.08153,2534.5,2534.4,4.506]
[1748824386331,1.2928,2534.5,2534.4,4.506]
[1748824386733,1.2928,2534.5,2534.4,5.29476]
[1748824386936,1.2928,2534.5,2534.4,4.506]
[1748824387435,0.78881,2534.3,2534.0,41.58887]
[1748824387635,1.3208,2534.2,2534.1,5.20086]
[1748824390037,0.78886,2534.1,2534.0,40.8]
[1748824390237,0.78886,2534.1,2533.8,0.00592359]
[1748824390238,0.78892,2533.9,2533.8,4.41792359]
[1748824390430,3.99672,2533.9,2533.8,4.41792359]
[1748824390636,3.99672,2533.9,2533.8,45.21792359]
[1748824390831,5.28562,2533.9,2533.8,45.21792359]
[1748824391037,5.28562,2533.9,2533.8,4.41792359]
[1748824391543,5.28562,2533.9,2533.8,0.00592359]
[1748824400347,3.2078,2533.9,2533.8,0.79487359]
[1748824401242,4.5931,2534.2,2534.0,0.78887]
[1748824401449,5.38193,2534.2,2534.1,4.411]
[1748824403347,0.78881,2534.3,2534.1,4.411]
[1748824403545,0.78881,2534.3,2534.1,5.19985]
[1748824403742,1.9976,2534.4,2534.2,0.78883]
[1748824403938,2.78639,2534.4,2534.2,0.78883]
[1748824404142,2.78639,2534.4,2534.1,4.411]
[1748824404544,1.9976,2534.4,2534.2,0.7888]
[1748824404743,0.7888,2534.3,2534.2,0.7888]
[1748824404945,0.7888,2534.3,2534.1,5.19984]
[1748824405350,0.7888,2534.3,2534.1,4.411]
[1748824405651,2.0718,2534.3,2534.1,5.19983]
[1748824406239,3.2078,2534.5,2534.3,0.78878]
[1748824406444,3.2078,2534.5,2534.2,1.3421]
[1748824406750,3.2078,2534.5,2534.4,0.78876]
[1748824407248,3.2078,2534.5,2534.3,0.6372]
[1748824407546,3.99655,2534.5,2534.4,4.41]
[1748824407753,3.99653,2534.5,2534.4,4.41]
[1748824407950,5.25739671,2534.5,2534.4,4.41]
[1748824408456,5.25736946,2534.5,2534.4,4.41]
[1748824408750,6.61626946,2534.5,2534.4,4.41]
[1748824408949,7.25826946,2534.5,2534.4,4.41]
[1748824410343,0.78892,2533.9,2533.8,4.41592359]
[1748824410547,5.25755946,2533.9,2533.8,4.41592359]
[1748824410851,5.25755946,2533.9,2533.8,5.20487359]
[1748824411152,5.25755946,2533.9,2533.8,4.41592359]
[1748824411851,5.2585447,2533.9,2533.8,4.41592359]
[1748824412450,10.51261718,2533.9,2533.8,0.00592359]
[1748824412654,10.51339701,2533.9,2533.8,0.00592359]
[1748824412949,14.89947985,2533.9,2533.8,0.00592359]
[1748824413153,14.89947747,2533.9,2533.8,0.00592359]
[1748824413353,14.89945449,2533.9,2533.8,0.00592359]
[1748824413547,12.55840048,2533.9,2533.8,0.00592359]
[1748824413751,12.55839014,2533.9,2533.8,0.00592359]
[1748824414055,15.65334414,2533.9,2533.8,0.00592359]
[1748824414649,0.78908,2533.4,2533.3,44.214]
[1748824414856,3.99688,2533.4,2533.3,4.41]
[1748824415050,0.7892,2533.0,2532.9,42.8284]
[1748824415247,1.26260453,2533.0,2532.8,4.41]
[1748824415450,2.17353,2532.9,2532.8,4.41]
[1748824415655,3.43613453,2532.9,2532.8,4.41]
[1748824416448,1.26260453,2532.9,2532.6,4.41592359]
[1748824416658,0.78929,2532.7,2532.6,4.41592359]
[1748824416956,2.05153978,2532.7,2532.6,4.41592359]
[1748824417257,3.43583978,2532.7,2532.6,4.41592359]
[1748824418052,4.10913978,2532.7,2532.6,4.41592359]
[1748824420056,2.64654978,2532.7,2532.6,5.20525359]
[1748824420864,3.43583978,2532.7,2532.6,4.41592359]
[1748824421056,3.43290749,2532.7,2532.6,4.41592359]
[1748824422958,22.24890749,2532.7,2532.6,4.41592359]
[1748824423660,20.98959,2532.7,2532.6,4.41592359]
[1748824425359,20.96759,2532.7,2532.6,4.41592359]
[1748824427653,24.17539,2532.7,2532.6,4.41592359]
[1748824427847,23.3681,2532.7,2532.6,5.20525359]
[1748824428053,4.5921,2532.7,2532.6,5.20525359]
[1748824428256,23.3651,2532.7,2532.6,5.20525359]
[1748824429455,4.5921,2532.7,2532.6,5.20525359]
[1748824429655,21.9688,2532.7,2532.6,5.20525359]
[1748824430660,21.9618,2532.7,2532.6,5.20525359]
[1748824431861,3.8774,2533.0,2532.9,0.78923]
[1748824432057,21.9598,2533.0,2532.9,0.78923]
[1748824432460,3.2078,2533.0,2532.9,0.78923]
[1748824432963,0.00592359,2533.1,2533.0,0.7892]
[1748824433166,0.00592359,2533.1,2533.0,5.1192]
[1748824433652,0.00592359,2533.1,2533.0,6.4884]
[1748824435956,0.00592359,2533.1,2533.0,2.1584]
[1748824436170,0.00592359,2533.1,2533.0,5.1182]
[1748824441365,0.7892,2533.0,2532.9,0.78922]
[1748824441564,0.7892,2533.0,2532.9,5.11822]
[1748824442063,1.34152359,2533.1,2533.0,0.7892]
[1748824442270,2.60489302,2533.1,2533.0,0.7892]
[1748824443066,3.39406302,2533.1,2533.0,0.7892]
[1748824443269,2.60489302,2533.1,2533.0,0.7892]
[1748824444773,3.39406302,2533.1,2533.0,0.7892]
[1748824444974,2.60489302,2533.1,2533.0,0.7892]
[1748824445175,0.7892,2533.0,2532.9,5.11821]
[1748824445477,6.51466033,2533.0,2532.9,5.11821]
[1748824445672,5.72546033,2533.0,2532.9,5.11821]
[1748824446372,5.72546033,2533.0,2532.6,0.00592359]
[1748824446674,2.6991046,2532.9,2532.8,0.78926]
[1748824446869,3.1630546,2532.9,2532.8,0.78926]
[1748824447670,1.2644546,2532.9,2532.8,0.78926]
[1748824448073,0.00592359,2533.1,2533.0,0.7892]
[1748824448675,3.2078,2533.3,2533.2,0.78914]
[1748824448978,4.47240909,2533.3,2533.2,5.00514]
[1748824449170,3.2078,2533.8,2533.7,0.78898]
[1748824449375,3.2078,2533.8,2533.7,5.00498]
[1748824450276,3.2078,2533.8,2533.7,6.29938]
[1748824450672,0.00394904,2534.0,2533.9,0.78892]
[1748824450867,4.47586254,2534.0,2533.9,0.78892]
[1748824451076,4.47586254,2534.0,2533.8,0.78894]
[1748824451286,2.5997135,2533.9,2533.8,0.78894]
[1748824452279,2.5997135,2533.9,2533.5,4.216]
[1748824452480,0.789,2533.7,2533.5,5.00502]
[1748824452689,1.3356,2533.6,2533.5,5.00502]
[1748824452988,1.3356,2533.6,2533.5,45.80502]
[1748824453383,1.3356,2533.6,2533.5,5.00502]
[1748824455387,5.33241,2533.6,2533.5,4.216]
[1748824455686,7.26334435,2533.6,2533.5,4.216]
[1748824456390,6.47433435,2533.6,2533.5,4.216]
[1748824456685,0.78905,2533.5,2533.4,0.78905]
[1748824456891,3.41678435,2533.5,2533.4,0.78905]
[1748824457491,2.62773435,2533.5,2533.4,0.78905]
[1748824457791,0.78908,2533.4,2533.3,5.00409]
[1748824457990,3.39260741,2533.4,2533.3,5.00409]
[1748824458790,3.39260741,2533.4,2533.3,4.215]
[1748824459491,1.97278,2533.3,2532.8,4.215]
[1748824459687,0.78923,2532.9,2532.8,4.215]
[1748824459884,2.05305741,2532.9,2532.8,4.215]
[1748824460689,1.95782741,2532.9,2532.8,4.215]
[1748824460891,2.74705741,2532.9,2532.8,4.215]
[1748824461190,4.09615741,2532.9,2532.8,4.215]
[1748824461992,7.30395741,2532.9,2532.8,4.215]
[1748824462192,7.30374056,2532.9,2532.8,4.215]
[1748824462688,0.78929,2532.7,2532.6,0.00592359]
[1748824462990,2.30559116,2532.7,2532.6,0.00592359]
[1748824463290,2.30548467,2532.7,2532.6,0.00592359]
[1748824463489,3.65258467,2532.7,2532.6,0.00592359]
[1748824463990,3.39973979,2532.7,2532.6,0.00592359]
[1748824464291,8.65244745,2532.7,2532.6,0.00592359]
[1748824464491,0.78948,2532.1,2532.0,4.216]
[1748824465698,2.13656,2532.2,2532.0,4.216]
[1748824465885,0.78948,2532.1,2532.0,4.216]
[1748824466086,2.13658,2532.1,2532.0,5.00549]
[1748824466895,1.3471,2532.1,2532.0,5.00549]
[1748824467094,2.13658,2532.1,2532.0,5.00549]
[1748824467693,2.13658,2532.1,2532.0,4.216]
[1748824468195,1.3471,2532.1,2532.0,5.00551]
[1748824468392,0.69072359,2532.3,2532.2,0.78945]
[1748824468694,19.35972359,2532.3,2532.2,0.78945]
[1748824469193,20.72152359,2532.3,2532.2,0.78945]
[1748824469395,2.05252359,2532.3,2532.2,0.78945]
[1748824469992,2.84194359,2532.3,2532.1,0.78946]
[1748824470186,2.05252359,2532.3,2532.0,4.216]
[1748824470391,0.6748,2532.2,2532.0,5.0055]
[1748824470591,1.372,2532.1,2532.0,5.0055]
[1748824470899,0.78954,2531.9,2531.8,4.22192359]
[1748824471399,0.78954,2531.9,2531.8,5.01149359]
[1748824472496,0.78954,2531.9,2531.8,0.00592359]
[1748824472701,0.78976,2531.2,2531.0,0.78981]
[1748824472890,0.78976,2531.2,2531.1,0.78979]
[1748824473094,18.68,2531.4,2531.1,0.78979]
[1748824473297,0.78973,2531.3,2531.2,0.78975]
[1748824473604,0.78973,2531.3,2531.1,0.78977]
[1748824473802,1.3049,2531.3,2531.2,0.78976]
[1748824474597,1.3049,2531.3,2531.1,0.78977]
[1748824474796,2.09464,2531.3,2531.1,0.78977]
[1748824475199,0.78974,2531.3,2531.1,0.78977]
[1748824475802,2.05314,2531.3,2531.1,0.78977]
[1748824476497,0.78979,2531.1,2531.0,0.00592359]
[1748824477005,2.05319,2531.1,2531.0,0.00592359]
[1748824478197,2.05319,2531.1,2530.4,3.2078]
[1748824478198,0.78998,2530.5,2530.4,3.2078]
[1748824478396,0.7901,2530.1,2530.0,4.204]
[1748824478904,1.97535,2530.0,2529.4,4.204]
[1748824479102,0.79029,2529.5,2529.4,4.204]
[1748824479504,1.2925,2529.6,2529.3,0.79034]
[1748824479706,2.08277,2529.6,2529.2,4.20992359]
[1748824480314,1.2925,2529.6,2529.2,4.20992359]
[1748824480507,1.2925,2529.6,2529.5,0.79029]
[1748824480909,2.08277,2529.6,2529.4,0.7903]
[1748824481212,1.2925,2529.6,2529.5,0.79029]
[1748824481607,1.2925,2529.6,2529.4,0.7903]
[1748824481803,1.2925,2529.6,2529.2,7.41772359]
[1748824482013,0.79035,2529.3,2529.2,7.41772359]
[1748824482207,0.79034,2529.4,2529.2,8.20810359]
[1748824482407,5.1795,2529.6,2529.3,0.79034]
[1748824482408,0.7903,2529.5,2529.3,0.79034]
[1748824482617,2.0635,2529.5,2529.3,0.79034]
[1748824482807,0.79033,2529.4,2529.2,5.00029359]
[1748824483114,1.2732,2529.5,2529.2,5.00029359]
[1748824483412,3.887,2529.6,2529.5,0.79029]
[1748824483413,3.2078,2529.6,2529.5,0.79029]
[1748824485618,19.96012359,2529.7,2529.6,0.79026]
[1748824487115,0.00592359,2529.7,2529.6,0.79026]
[1748824487418,0.00592359,2529.7,2529.6,4.99626]
[1748824488317,0.00592359,2529.7,2529.3,3.2078]
[1748824488617,3.2078,2529.5,2529.2,0.00592359]
[1748824488813,3.2078,2529.5,2529.4,0.79031]
[1748824489010,5.38389,2529.5,2529.2,0.00592359]
[1748824489211,5.38389,2529.5,2529.3,0.79035]
[1748824489407,5.38389,2529.5,2529.3,0.79033]
[1748824489408,0.79032,2529.4,2529.3,0.79033]
[1748824489711,0.78115524,2529.3,2529.2,0.00592359]
[1748824490412,2.16695524,2529.3,2529.2,0.00592359]
[1748824490613,3.8399,2529.5,2529.2,0.00592359]
[1748824490818,0.00592359,2529.7,2529.6,0.79026]
[1748824491314,1.26922359,2529.7,2529.6,0.79026]
[1748824492306,0.00592359,2529.7,2529.6,0.79026]
[1748824492515,0.20352359,2529.7,2529.6,0.79026]
[1748824492914,0.6834,2530.3,2530.2,0.79007]
[1748824493118,4.4711,2530.5,2530.4,0.79001]
[1748824493313,5.26108,2530.5,2530.4,0.79001]
[1748824493616,5.26109,2530.5,2530.3,0.79002]
[1748824493816,5.26109,2530.5,2530.1,1.3806]
[1748824494017,0.79002,2530.4,2530.2,0.79004]
[1748824494214,1.2719,2530.3,2529.8,0.79019]
[1748824494516,0.79023,2529.8,2529.6,0.79025]
[1748824494818,5.26993,2529.7,2529.6,0.79025]
[1748824495315,22.71197,2530.0,2529.4,1.97574]
[1748824495520,1.25118538,2529.9,2529.6,0.79023]
[1748824495714,0.79024,2529.7,2529.4,1.3827]
[1748824496022,1.2719,2529.6,2529.5,0.79026]
[1748824496322,0.79019,2529.9,2529.4,1.3827]
[1748824496514,2.52414005,2529.8,2529.7,0.7902]
[1748824497107,3.31434005,2529.8,2529.4,1.3827]
[1748824497313,1.25268649,2529.7,2529.6,0.79026]
[1748824497620,3.30901649,2529.7,2529.5,0.79028]
[1748824497816,2.05633,2529.7,2529.6,0.79026]
[1748824498120,2.51951912,2529.7,2529.6,0.79026]
[1748824498511,0.79034,2529.4,2529.3,4.207]
[1748824499315,2.04457947,2529.4,2529.3,4.207]
[1748824499925,0.79035,2529.3,2529.2,0.00592359]
[1748824500125,4.73138947,2529.3,2529.2,0.00592359]
[1748824500422,1.2557592,2529.3,2529.2,4.00411359]
[1748824500630,1.2557592,2529.3,2529.2,0.79631359]
[1748824500825,2.0461092,2529.3,2529.2,0.00592359]
[1748824501025,1.97603,2529.2,2528.4,2.6177]
[1748824501224,3.2078,2528.8,2528.3,39.812]
[1748824501420,0.79065,2528.4,2528.2,3.2078]
[1748824501626,2.6112592,2528.7,2528.2,3.2078]
[1748824501627,2.6783092,2528.7,2528.2,3.2078]
[1748824501830,2.611358,2528.6,2528.4,0.79062]
[1748824502034,1.255858,2528.5,2528.4,0.79062]